Workbook

Sheet Table 1
A1: TABLE 1: | C1: Registrations* and timeliness** reported by registries as at 30/06/09
L2: 2007 Numbers | N2: 2007 complete by 30/06/09 | O2: Population
A3: Registry | C3: 1998 | D3: 1999 | E3: 2000 | F3: 2001 | G3: 2002 | H3: 2003 | I3: 2004 | J3: 2005 | K3: 2006 | L3: Initial £ | M3: ONS ready £ | N3: % ONS ready*** | O3: 2007 (for new areas) ^
A4: England (total) | C4: =SUM(C5:C12) -> 223052 | D4: =SUM(D5:D12) -> 228387 | E4: 229918 | F4: 233252 | G4: 232316 | H4: 237075 | I4: 241917 | J4: 246023 | K4: 249540 | L4: 822 | M4: 245301 | N4: =M4/((I4+J4+K4)/3)*100 -> 99.78616369 | O4: =SUM(O5:O12) -> 51093000
B5: Eastern ^ | C5: 24020 | D5: 24578 | E5: 25103 | F5: 25255 | G5: 25535 | H5: 25864 | I5: 26066 | J5: 27038 | K5: 26826 | L5: 0 | M5: 27135 | N5: 101.8 | O5: 5661000
B6: North West | C6: 30840 | D6: 32637 | E6: 31594 | F6: 32583 | G6: 31855 | H6: 32573 | I6: 33190 | J6: 33660 | K6: 34430 | L6: 0 | M6: 32400 | N6: 95.97156398 | O6: 6578000
B7: Northern & Yorkshire | C7: 31615 | D7: 31518 | E7: 32499 | F7: 33134 | G7: 33556 | H7: 34135 | I7: 33990 | J7: 34705 | K7: 35193 | L7: 822 | M7: 33377 | N7: 96.38360542 | O7: 6763000
B8: Oxford | C8: 11320 | D8: 11651 | E8: 11526 | F8: 11749 | G8: 11703 | H8: 11918 | I8: 12692 | J8: 12374 | K8: 12590 | L8: 0 | M8: 12429 | N8: 99.02007648 | O8: 2859000
B9: South & West | C9: 32794 | D9: 34429 | E9: 34371 | F9: 36164 | G9: 35596 | H9: 36570 | I9: 37903 | J9: 38678 | K9: 39402 | L9: 0 | M9: 38483 | N9: 99.5395877 | O9: 7023000
B10: Thames ^ | C10: 47040 | D10: 46939 | E10: 47614 | F10: 47031 | G10: 46461 | H10: 47182 | I10: 47619 | J10: 48509 | K10: 49081 | L10: 0 | M10: 49212 | N10: 101.671384 | O10: 11840000
B11: Trent | C11: 21102 | D11: 22116 | E11: 22928 | F11: 22942 | G11: 22663 | H11: 23416 | I11: 24516 | J11: 25056 | K11: 25494 | L11: 0 | M11: 25959 | N11: 103.7447047 | O11: 4987000
B12: West Midlands | C12: 24321 | D12: 24519 | E12: 24283 | F12: 24394 | G12: 24947 | H12: 25417 | I12: 25941 | J12: 26003 | K12: 26524 | L12: 0 | M12: 26306 | N12: 100.5734822 | O12: 5382000
A13: Scotland | C13: 25811 | D13: 25841 | E13: 26146 | F13: 26112 | G13: 26667 | H13: 26953 | I13: 27615 | J13: 27055 | K13: 27266 | L13: 13599 | M13: 18197 | N13: 66.62639133 | O13: 5144000
A14: Wales | C14: 14753 | D14: 15335 | E14: 15497 | F14: 15752 | G14: 15901 | H14: 16301 | I14: 16873 | J14: 16671 | K14: 17275 | L14: 0 | M14: 17519 | N14: 103.4199807 | O14: 2980000
A15: Northern Ireland | C15: 6434 | D15: 6336 | E15: 6504 | F15: 6554 | G15: 6791 | H15: 7012 | I15: 7161 | J15: 7163 | K15: 7349 | L15: 0 | M15: 7734 | N15: 107.0548609 | O15: 1759000
A16: UK Total | C16: =SUM(C5:C15) -> 270050 | D16: 275899 | E16: 278065 | F16: 281670 | G16: 281675 | H16: 287341 | I16: 293566 | J16: 296912 | K16: 301430 | L16: 14421 | M16: 288751 | N16: =M16/((I16+J16+K16)/3)*100 -> 97.12358225 | O16: =SUM(O5:O15) -> 60976000
M17: Target: | N17: 100%**
A18: * All invasive cases excluding non-melanoma skin cancer
A19: ** For the English and Welsh Registries, all cases diagnosed in a given calendar year should have been completed, entered onto the registry computer system and sent to ONS within 18 months of the end of the calendar year.
A20: Additionally, Wales will have a target of 100% completeness within 12 months of the end of the calendar year
A21: ***The percentage classified as being ONS Ready is compared to the average number of registrations in 2004-2006
A22: £ Initial covers cases where not all the basic information has been received or validity has not been confirmed. ONS ready is defined as "of a standard usable for analysis and in publications"
A23: # The percentage complete for ONS Received is compared to the number of Initial plus the ONS Ready cases for 2006. These may be over 100% if registries have sent records to ONS already which they
A24: subsequently cancel/amend on their own database but have not yet sent these changes through to ONS
A25: ^ Population defined using Lower Super Output Area populations for 2007 on UKACR website www.ukacr.org to the nearest thousand
A27: All subsequent tables report on the diagnosis year 2007 and Scotland report on the diagnosis year 2006 unless otherwise stated.
A29: Note: Even in cancer registries which rely on active notification of cases, cancer incidence figures do not reach stability for some years after the end of a given year because of a small but steady stream of late registrations, some
A30: of which first come to the attention of the registry through death certification

Sheet Tables1_2_3
A1: Standard Proforma for Reporting Registry Performance
E2: red text = UK/England don’t meet target
F3: strange compared to UK/England
F4: peer review or target/expected value not met
A6: All xnmsc unless stated
A7: Table No. & Parameters | B7: Cancer Peer Review Standard | C7: Target /Expected Value | D7: UK Av | E7: England Average | F7: ECRIC | G7: NWCIS | H7: NYCRIS | I7: OCIU | J7: SWCIS | K7: Thames | L7: Trent | M7: WMCIU | N7: Scotland | O7: WCISU | P7: NICR
A8: Table 1 Registrations and timeliness
A9: % ONS ready | B9: 100% +2% | C9: 100% +2% | D9: =(SUM(F9:P9))/11 -> 91.74356782 | E9: =(SUM(F9:M9))/8 -> 99.83805055 | F9: 101.8 | G9: 95.97156398 | H9: 96.38360542 | I9: 99.02007648 | J9: 99.5395877 | K9: 101.671384 | L9: 103.7447047 | M9: 100.5734822 | N9: 66.6* | O9: 103.4199807 | P9: 107.0548609
A10: Table 2A % change in registrations - males
A11: Lung | B11: +2% | C11: 95% CI | D11: =(SUM(F11:P11))/11 -> -1.645454545 | E11: =(SUM(F11:M11))/8 -> -2.9125 | F11: -0.6 | G11: -8.2 | H11: -3.5 | I11: -2.3 | J11: -3.2 | K11: -5.8 | L11: 3.5 | M11: -3.2 | N11: -0.4 | O11: 3.2 | P11: 2.4
A12: Melanoma of skin | B12: +2% | C12: 95% CI | D12: 9.272727273 | E12: 8.75 | F12: 13.5 | G12: 8.9 | H12: 11.2 | I12: -6.3 | J12: 2.1 | K12: 23.7 | L12: 14.3 | M12: 2.6 | N12: 18.8 | O12: 22.7 | P12: -9.5
A13: Colorectal | B13: +2% | C13: 95% CI | D13: 3.2 | E13: 1.7625 | F13: 3.5 | G13: 2.4 | H13: 2.6 | I13: -0.2 | J13: -0.6 | K13: 0.7 | L13: 2.4 | M13: 3.3 | N13: -2.2 | O13: 8.1 | P13: 15.2
A14: Prostate | B14: +2% | C14: 95% CI | D14: 1.909090909 | E14: -0.7125 | F14: 1.9 | G14: -10.5 | H14: -0.2 | I14: 4.7 | J14: -1.9 | K14: 3.4 | L14: 2.2 | M14: -5.3 | N14: 1.3 | O14: 10.8 | P14: 14.6
A15: Bladder | B15: +2% | C15: 95% CI | D15: -1.445454545 | E15: 2.1625 | F15: 0.3 | G15: -1.4 | H15: -2.3 | I15: -6.6 | J15: -0.8 | K15: 3.4 | L15: 16.2 | M15: 8.5 | N15: -5.9 | O15: -26.2 | P15: -1.1
A16: Haematology | B16: +2% | C16: 95% CI | D16: -0.7545454545 | E16: -0.9375 | F16: -5.4 | G16: -8.6 | H16: -0.7 | I16: -1.6 | J16: 1.3 | K16: -2.8 | L16: 10 | M16: 0.3 | N16: -4.6 | O16: 4.8 | P16: -1
A17: All xnmsc | B17: +2% | C17: 95% CI | D17: 1.318181818 | E17: -0.1375 | F17: 1.7 | G17: -5.2 | H17: -1 | I17: -0.4 | J17: -1.1 | K17: 0.8 | L17: 4.1 | M17: 0 | N17: 0.5 | O17: 5.1 | P17: 10
A18: Table 2B % change in registrations - females
A19: Lung | B19: +2% | C19: 95% CI | D19: 2.509090909 | E19: 2.425 | F19: 2.9 | G19: -1.2 | H19: 0.1 | I19: -3.3 | J19: 0.7 | K19: 1.4 | L19: 15.1 | M19: 3.7 | N19: 3.8 | O19: -3.1 | P19: 7.5
A20: Breast Invasive | B20: +2% | C20: 95% CI | D20: 0.3909090909 | E20: -1.0375 | F20: -1.7 | G20: -4 | H20: -1.8 | I20: -0.9 | J20: 0.7 | K20: 0 | L20: -2.6 | M20: 2 | N20: 3.5 | O20: 1.9 | P20: 7.2
A21: Breast In Situ | C21: 95% CI | D21: 12.22727273 | E21: 9.8625 | F21: 12.7 | G21: 8.7 | H21: 9.5 | I21: 3.5 | J21: 0.5 | K21: 11.5 | L21: 14.9 | M21: 17.6 | N21: 14.7 | O21: 16.1 | P21: 24.8
A22: Cervix Invasive | B22: +2% | C22: 95% CI | D22: 0.6454545455 | E22: -0.175 | F22: 8.2 | G22: 1.1 | H22: -9.2 | I22: 0 | J22: -1.8 | K22: -0.5 | L22: 1.8 | M22: -1 | N22: 3.2 | O22: 11.7 | P22: -6.4
A23: Cervix In Situ | C23: 95% CI | D23: 4.836363636 | E23: 3.225 | F23: 12.6 | G23: -16.1 | H23: -4.8 | I23: 9.6 | J23: 2.5 | K23: 30.8 | L23: 3.9 | M23: -12.7 | N23: -3 | O23: 32.2 | P23: -1.8
A24: Melanoma of skin | B24: +2% | C24: 95% CI | D24: 4.190909091 | E24: 3.7125 | F24: 6.6 | G24: -0.3 | H24: 4.7 | I24: -0.4 | J24: 1.7 | K24: 22.7 | L24: 1.5 | M24: -6.8 | N24: 14.8 | O24: 2.8 | P24: -1.2
A25: Colorectal | B25: +2% | C25: 95% CI | D25: 2.863636364 | E25: 1.475 | F25: 7 | G25: 5.3 | H25: -0.1 | I25: -3.3 | J25: 0.8 | K25: 0.2 | L25: 0.7 | M25: 1.2 | N25: 1.1 | O25: 9.2 | P25: 9.4
A26: Bladder | B26: +2% | C26: 95% CI | D26: -7.645454545 | E26: -2.8125 | F26: 3 | G26: -2.2 | H26: 1.3 | I26: 1.8 | J26: -0.5 | K26: -2.3 | L26: -8.8 | M26: -14.8 | N26: -10.3 | O26: -23.5 | P26: -27.8
A27: Haematology | B27: +2% | C27: 95% CI | D27: -3.7 | E27: -3.225 | F27: 1.4 | G27: -15.1 | H27: -3.9 | I27: -14.2 | J27: -6 | K27: 1.7 | L27: 8.3 | M27: 2 | N27: -8.5 | O27: -5.1 | P27: -1.3
A28: All xnmsc | B28: +2% | C28: 95% CI | D28: 0.6454545455 | E28: 0.175 | F28: 1.5 | G28: -2.9 | H28: -2 | I28: -1.6 | J28: 0.2 | K28: 1.6 | L28: 3.4 | M28: 1.2 | N28: -0.1 | O28: 1.6 | P28: 4.2
A29: Table 2C Childhood cancer incidence rates
A30: Age 0-4
A31: M | C31: 19.8 | D31: 21.59565185 | E31: 18.68749275 | F31: 19.3 | G31: 14 | H31: 12.23 | I31: 19.5 | J31: 24.57 | K31: 19.40602444 | L31: 19.61883408 | M31: 20.8750835 | N31: 19.65222834 | O31: 26.2 | P31: 42.2
A32: F | C32: 18.4 | D32: 17.81228467 | E32: 17.48124389 | F32: 15.8 | G32: 20.1 | H32: 13.89 | I32: 17 | J32: 21.41 | K32: 18.21830279 | L32: 14.01903638 | M32: 19.41261194 | N32: 16.78518021 | O32: 25.1 | P32: 14.2
A33: Age 5-9
A34: M | C34: 12.6 | D34: 10.96894044 | E34: 10.84701607 | F34: 8.8 | G34: 10.5 | H34: 6.89 | I34: 14.9 | J34: 12.93 | K34: 9.189540006 | L34: 12.93168478 | M34: 10.63490375 | N34: 6.982216295 | O34: 11.7 | P34: 15.2
A35: F | C35: 8.7 | D35: 7.898271397 | E35: 8.713145089 | F35: 9.9 | G35: 6.6 | H35: 8.33 | I35: 6 | J35: 6.49 | K35: 6.921643981 | L35: 14.36857668 | M35: 11.09494005 | N35: 8.075824652 | O35: 3.7 | P35: 5.4
A36: Age 10-14
A37: M | C37: 12.1 | D37: 10.59080328 | E37: 11.02997922 | F37: 14.5 | G37: 10.9 | H37: 10 | I37: 8.6 | J37: 9.79 | K37: 12.59490112 | L37: 10.29236757 | M37: 11.56256504 | N37: 8.259002313 | O37: 10.5 | P37: 9.5
A38: F | C38: 10.1 | D38: 10.42292565 | E38: 10.83348374 | F38: 12.8 | G38: 6.5 | H38: 12.45 | I38: 10.3 | J38: 14.7 | K38: 10.33805438 | L38: 12.93537758 | M38: 6.644438001 | N38: 9.284312165 | O38: 12.1 | P38: 6.6
A39: Table 2D % death certificate only (males & females)
A40: Lung | B40: 0.02 | C40: 0.02 | D40: 3.907905057 | E40: 4.563373411 | F40: 0 | G40: 10.5 | H40: 3.23 | I40: 2.3 | J40: 2.5916 | K40: 3.817692566 | L40: 2.818828681 | M40: 11.24886604 | N40: 0.9499683344 | O40: 4.2 | P40: 1.33
A41: Breast Invasive | B41: 0.02 | C41: 0.02 | D41: 0.6779844522 | E41: 0.8051412134 | F41: 0 | G41: 1.9 | H41: 0.56 | I41: 0.1 | J41: 0.7732 | K41: 1.278244028 | L41: 0.6282722513 | M41: 1.201413428 | N41: 0.1466992665 | O41: 0.7 | P41: 0.17
A42: Cervix Invasive | B42: 0.02 | C42: 0.02 | D42: 0.4098445562 | E42: 0.5010362647 | F42: 0 | G42: 1.5 | H42: 0.18 | I42: 0 | J42: 0.9202 | K42: 0.6912442396 | L42: 0.7168458781 | M42: 0 | N42: 0 | O42: 0.5 | P42: 0
A43: Melanoma of skin | B43: 0.02 | C43: 0.02 | D43: 0.1900463953 | E43: 0.2237256767 | F43: 0.05 | G43: 0.4 | H43: 0.18 | I43: 0 | J43: 0.1674 | K43: 0.5175388154 | L43: 0.3448275862 | M43: 0.1300390117 | N43: 0.1007049345 | O43: 0.2 | P43: 0
A44: Colorectal | B44: 0.02 | C44: 0.02 | D44: 1.710953895 | E44: 1.96469145 | F44: 0 | G44: 4 | H44: 1.54 | I44: 1 | J44: 1.1132 | K44: 2.354377398 | L44: 1.512713228 | M44: 4.197240974 | N44: 0.7229612493 | O44: 2.3 | P44: 0.08
A45: Prostate | B45: 0.02 | C45: 0.02 | D45: 1.281422258 | E45: 1.605598352 | F45: 0 | G45: 3.6 | H45: 1.06 | I45: 0.4 | J45: 1.0216 | K45: 1.36325852 | L45: 1.536360533 | M45: 3.863567763 | N45: 0.2308580223 | O45: 0.8 | P45: 0.22
A46: Bladder | B46: 0.02 | C46: 0.02 | D46: 1.453749363 | E46: 1.943995904 | F46: 0 | G46: 5.8 | H46: 1.05 | I46: 0.3 | J46: 1.8096 | K46: 1.314285714 | L46: 1.372756072 | M46: 3.905325444 | N46: 0.139275766 | O46: 0.3 | P46: 0
A47: Haematology | B47: 0.02 | C47: 0.02 | D47: 2.723831131 | E47: 3.500167605 | F47: 0 | G47: 11.3 | H47: 1.65 | I47: 0.6 | J47: 1.4883 | K47: 1.746242263 | L47: 2.076749436 | M47: 9.14004914 | N47: 0.4008016032 | O47: 1.4 | P47: 0.16
A48: III-defined sites | C48: 0.02 | D48: 10.54624505 | E48: 11.82496802 | F48: 0.72 | G48: 25.4 | H48: 8.06 | I48: 6.4 | J48: 8.2836 | K48: 7.804309843 | L48: 7.373737374 | M48: 30.55809698 | N48: 3.838951311 | O48: 10.9 | P48: 6.67
A49: All xnmsc Male | B49: 0.02 | C49: 0.02 | D49: 2.303237754 | E49: 2.753353205 | F49: 0.007 | G49: 6.6 | H49: 1.93 | I49: 1 | J49: 1.4156 | K49: 2.094499876 | L49: 2.074910367 | M49: 6.904815397 | N49: 0.5487896557 | O49: 2.1 | P49: 0.66
A50: All xnmsc Female | B50: 0.02 | C50: 0.02 | D50: 2.364421346 | E50: 2.78279734 | F50: 0.04 | G50: 6.2 | H50: 1.92 | I50: 1.2 | J50: 1.8321 | K50: 2.585542071 | L50: 1.968871595 | M50: 6.515865051 | N50: 0.7662560871 | O50: 2.5 | P50: 0.48
A51: All xnmsc M<75 | C51: 0.02 | D51: 1.098705758 | E51: 1.331055006 | F51: 0.01 | G51: 3.7 | H51: 0.71 | I51: 0.3 | J51: 0.5399 | K51: 1.078651685 | L51: 1.120038958 | M51: 3.189849401 | N51: 0.2873232962 | O51: 1.1 | P51: 0.05
A52: All xnmsc M>=75 | C52: 0.02 | D52: 4.355421169 | E52: 5.260797674 | F52: 0 | G52: 12 | H52: 4.05 | I52: 2.4 | J52: 2.7693 | K52: 3.917502016 | L52: 3.677221655 | M52: 13.27235772 | N52: 1.043251467 | O52: 3.8 | P52: 0.98
A53: All xnmsc F<75 | C53: 0.02 | D53: 0.7455695485 | E53: 0.9183927783 | F53: 0 | G53: 2.5 | H53: 0.56 | I53: 0.2 | J53: 0.3606 | K53: 0.8915118031 | L53: 0.7797504798 | M53: 2.055279943 | N53: 0.274122807 | O53: 0.5 | P53: 0.08
A54: All xnmsc F>=75 | C54: 0.02 | D54: 5.371279383 | E54: 6.238907169 | F54: 0.12 | G54: 13.1 | H54: 4.31 | I54: 3.4 | J54: 4.2223 | K54: 5.662110945 | L54: 4.164820558 | M54: 14.93202585 | N54: 1.692815855 | O54: 6.1 | P54: 1.38
A55: Table 2E % death certificate only (males & females) for previous diagnosis year
A56: Lung | B56: 0.02 | C56: 0.02 | D56: 4.404474368 | E56: 5.143104678 | F56: 2.2 | G56: 6 | H56: 2.57 | I56: 2.3 | J56: 2.011 | K56: 3.653041519 | L56: 3.094606543 | M56: 19.31618936 | N56: 0.6643806258 | O56: 5.4 | P56: 1.24
A57: Breast Invasive | B57: 0.02 | C57: 0.02 | D57: 0.8727042893 | E57: 0.9864671541 | F57: 0.35 | G57: 1.4 | H57: 0.31 | I57: 0.3 | J57: 0.8178 | K57: 1.28072445 | L57: 0.9900990099 | M57: 2.443113772 | N57: 0.3980099502 | O57: 1.1 | P57: 0.21
A58: Cervix Invasive | B58: 0.02 | C58: 0.02 | D58: 0.9149548061 | E58: 1.053045852 | F58: 0 | G58: 1.1 | H58: 0.27 | I58: 2.7 | J58: 0.3058 | K58: 0.7281553398 | L58: 0.6688963211 | M58: 2.651515152 | N58: 0.3401360544 | O58: 1.3 | P58: 0
A59: Melanoma of skin | B59: 0.02 | C59: 0.02 | D59: 0.3508049516 | E59: 0.3086068084 | F59: 0.29 | G59: 0.3 | H59: 0.27 | I59: 0.3 | J59: 0.2773 | K59: 0.5576208178 | L59: 0.4739336493 | M59: 0 | N59: 0 | O59: 1 | P59: 0.39
A60: Colorectal | B60: 0.02 | C60: 0.02 | D60: 2.022954431 | E60: 2.407316225 | F60: 0.99 | G60: 3.2 | H60: 0.96 | I60: 0.9 | J60: 1.1868 | K60: 2.331606218 | L60: 1.238995761 | M60: 8.45112782 | N60: 0.6039689387 | O60: 2 | P60: 0.39
A61: Prostate | B61: 0.02 | C61: 0.02 | D61: 1.523781981 | E61: 1.782664181 | F61: 0.73 | G61: 2.5 | H61: 0.62 | I61: 1.1 | J61: 0.929 | K61: 1.373534338 | L61: 1.560424967 | M61: 5.448354143 | N61: 0.240288346 | O61: 1.9 | P61: 0.36
A62: Bladder | B62: 0.02 | C62: 0.02 | D62: 1.660356386 | E62: 2.095936825 | F62: 0.84 | G62: 2.5 | H62: 0.74 | I62: 1.7 | J62: 1.5552 | K62: 1.390568319 | L62: 1.107419712 | M62: 6.934306569 | N62: 0.136425648 | O62: 0.9 | P62: 0.46
A63: Haematology | B63: 0.02 | C63: 0.02 | D63: 2.919843185 | E63: 3.51563326 | F63: 1.49 | G63: 5.3 | H63: 0.81 | I63: 1.6 | J63: 1.875 | K63: 1.748948417 | L63: 2.362204724 | M63: 12.93891294 | N63: 0.2332089552 | O63: 2.7 | P63: 1.06
A64: III-defined sites | C64: 0.02 | D64: 10.5089906 | E64: 12.29057772 | F64: 3.5 | G64: 14.5 | H64: 4.16 | I64: 8.2 | J64: 7.9768 | K64: 7.071240106 | L64: 7.397504456 | M64: 45.5190772 | N64: 3.244274809 | O64: 13.1 | P64: 0.93
A65: All xnmsc Male | B65: 0.02 | C65: 0.02 | D65: 2.631203194 | E65: 3.111364987 | F65: 1.39 | G65: 3.9 | H65: 1.33 | I65: 1.5 | J65: 1.4621 | K65: 2.070764715 | L65: 2.077638054 | M65: 11.16041713 | N65: 0.4523152407 | O65: 2.7 | P65: 0.9
A66: All xnmsc Female | B66: 0.02 | C66: 0.02 | D66: 2.779243999 | E66: 3.191357634 | F66: 1.11 | G66: 3.9 | H66: 1.28 | I66: 1.5 | J66: 1.8143 | K66: 2.612368766 | L66: 2.001418328 | M66: 11.31277398 | N66: 0.7708229248 | O66: 3 | P66: 1.27
A67: All xnmsc M<75 | C67: 0.02 | D67: 1.32759222 | E67: 1.60568676 | F67: 0.94 | G67: 2.2 | H67: 0.78 | I67: 0.7 | J67: 0.7252 | K67: 1.076164243 | L67: 0.9118541033 | M67: 5.512275732 | N67: 0.2080203398 | O67: 1.5 | P67: 0.05
A68: All xnmsc M>=75 | C68: 0.02 | D68: 4.77618492 | E68: 5.656788255 | F68: 2.1 | G68: 7 | H68: 2.29 | I68: 2.9 | J68: 2.5577 | K68: 3.811231925 | L68: 3.953535765 | M68: 20.64183835 | N68: 0.9337280802 | O68: 4.6 | P68: 1.75
A69: All xnmsc F<75 | C69: 0.02 | D69: 0.9355905654 | E69: 1.131710871 | F69: 0.63 | G69: 1.4 | H69: 0.55 | I69: 0.5 | J69: 0.5078 | K69: 0.9148305631 | L69: 0.7534329809 | M69: 3.797623423 | N69: 0.207809253 | O69: 1 | P69: 0.03
A70: All xnmsc F>=75 | C70: 0.02 | D70: 5.963198073 | E70: 6.769614071 | F70: 1.96 | G70: 8.3 | H70: 2.56 | I70: 3.5 | J70: 3.9826 | K70: 5.563706128 | L70: 4.303003138 | M70: 23.98760331 | N70: 1.828266228 | O70: 6.6 | P70: 3.01
A71: Table 2F % Zero survival (males & females)
A72: Lung | D72: 6.296241089 | E72: 7.475813395 | F72: 3.5 | G72: 12.6 | H72: 5.37 | I72: 7.3 | J72: 7.5505 | K72: 6.239488732 | L72: 5.665024631 | M72: 11.5814938 | N72: 2.322144817 | O72: 5.5 | P72: 1.63
A73: Breast Invasive | D73: 0.9156140182 | E73: 1.088544458 | F73: 0.11 | G73: 2.4 | H73: 0.72 | I73: 0.6 | J73: 1.1115 | K73: 1.523563589 | L73: 0.9947643979 | M73: 1.24852768 | N73: 0.293398533 | O73: 0.9 | P73: 0.17
A74: Cervix Invasive | D74: =(SUM(F74:P74))/11 -> 0.8471391854 | E74: =(SUM(F74:M74))/8 -> 0.9843610535 | F74: 0 | G74: 1.8 | H74: 0.37 | I74: 0 | J74: 2.7607 | K74: 1.152073733 | L74: 1.792114695 | M74: 0 | N74: 0.3436426117 | O74: 1.1 | P74: 0
A75: Melanoma of skin | D75: 0.323586443 | E75: 0.3823432422 | F75: 0 | G75: 0.5 | H75: 0.37 | I75: 0.4 | J75: 0.279 | K75: 0.6900517539 | L75: 0.6896551724 | M75: 0.1300390117 | N75: 0.1007049345 | O75: 0.4 | P75: 0
A76: Colorectal | D76: 2.881463441 | E76: 3.385460757 | F76: 2.05 | G76: 4.9 | H76: 2.89 | I76: 4.2 | J76: 2.7211 | K76: 3.487966516 | L76: 2.285162536 | M76: 4.549457 | N76: 1.272411799 | O76: 2.9 | P76: 0.44
A77: Prostate | D77: 1.729081647 | E77: 2.11148688 | F77: 0.75 | G77: 3.8 | H77: 1.21 | I77: 1.3 | J77: 1.6426 | K77: 2.144638404 | L77: 2.150904746 | M77: 3.893751887 | N77: 0.8080030781 | O77: 1 | P77: 0.32
A78: Bladder | D78: 2.228546519 | E78: 2.962023051 | F78: 1.08 | G78: 6.7 | H78: 2.03 | I78: 1.8 | J78: 3.1471 | K78: 2.342857143 | L78: 2.217529039 | M78: 4.378698225 | N78: 0.4178272981 | O78: 0.4 | P78: 0
A79: Haematology | D79: 3.937006576 | E79: 4.979345966 | F79: 1.89 | G79: 12.9 | H79: 2.79 | I79: 2.3 | J79: 3.921 | K79: 3.028293546 | L79: 3.521444695 | M79: 9.484029484 | N79: 1.152304609 | O79: 2 | P79: 0.32
A80: III-defined sites | D80: 14.69437001 | E80: 16.51774565 | F80: 4.1 | G80: 28.9 | H80: 13.17 | I80: 16.3 | J80: 13.9552 | K80: 12.05591147 | L80: 12.82828283 | M80: 30.83257091 | N80: 7.116104869 | O80: 13.5 | P80: 8.88
A81: All xnmsc Male | D81: 3.563187808 | E81: 4.265501865 | F81: 1.9 | G81: 7.8 | H81: 3.18 | I81: 3.4 | J81: 3.6326 | K81: 3.450977158 | L81: 3.623464795 | M81: 7.136972965 | N81: 1.51105097 | O81: 2.7 | P81: 0.86
A82: All xnmsc Female | D82: 3.548919167 | E82: 4.196086899 | F82: 1.7 | G82: 7.5 | H82: 3.05 | I82: 3.6 | J82: 3.7837 | K82: 3.872224703 | L82: 3.3307393 | M82: 6.73203119 | N82: 1.43941564 | O82: 3.3 | P82: 0.73
A83: All xnmsc M<75 | D83: 1.893710143 | E83: 2.243605211 | F83: 1.1 | G83: 4.4 | H83: 1.49 | I83: 1.7 | J83: 1.9369 | K83: 1.778491172 | L83: 2.045288532 | M83: 3.498161983 | N83: 0.8619698885 | O83: 1.4 | P83: 0.62
A84: All xnmsc M>=75 | D84: 6.506425539 | E84: 7.816518228 | F84: 3.2 | G84: 13.9 | H84: 6.08 | I84: 7 | J84: 6.2541 | K84: 6.452356262 | L84: 6.271705822 | M84: 13.37398374 | N84: 2.738535101 | O84: 4.9 | P84: 1.4
A85: All xnmsc F<75 | D85: 1.235713973 | E85: 1.492637414 | F85: 0.69 | G85: 3 | H85: 0.96 | I85: 0.9 | J85: 1.283 | K85: 1.519337017 | L85: 1.403550864 | M85: 2.185211434 | N85: 0.701754386 | O85: 0.8 | P85: 0.15
A86: All xnmsc F>=75 | D86: 7.8307704 | E86: 9.205029159 | F86: 3.4 | G86: 15.9 | H86: 6.74 | I86: 9.4 | J86: 7.8453 | K86: 8.154358562 | L86: 6.889676562 | M86: 15.31089815 | N86: 2.828241123 | O86: 7.6 | P86: 2.07
A87: Table 2G % microscopically verified (males & females)
A88: Lung | B88: 0.66 | C88: 68 | D88: 69.74457287 | E88: 70.00506013 | F88: 68.6 | G88: 61.3 | H88: 69.37 | I88: 73.7 | J88: 70.9195 | K88: 71.49344097 | L88: 72.96113848 | M88: 71.69640157 | N88: 72.04982056 | O88: 64.5 | P88: 70.6
A89: Breast Invasive | B89: 0.92 | C89: 95.9 | D89: 97.41698101 | E89: 97.25644792 | F89: 98.2 | G89: 94.7 | H89: 98.32 | I89: 98.3 | J89: 96.7622 | K89: 96.03615236 | L89: 97.61780105 | M89: 98.11542992 | N89: 98.43520782 | O89: 96 | P89: 99.1
A90: Breast In Situ | C90: 100 | D90: 99.72024663 | E90: 99.61533912 | F90: 100 | G90: 98.5 | H90: 100 | I90: 100 | J90: 100 | K90: 98.42271293 | L90: 100 | M90: 100 | N90: 100 | O90: 100 | P90: 100
A91: Cervix Invasive | B91: 0.94 | C91: 95.9 | D91: 97.16544754 | E91: 97.15317765 | F91: 98.5 | G91: 92.3 | H91: 97.19 | I91: 98.2 | J91: 96.0123 | K91: 97.23502304 | L91: 98.56630824 | M91: 99.22178988 | N91: 97.59450172 | O91: 94 | P91: 100
A92: Cervix In Situ | C92: 100 | D92: 100 | E92: 100 | F92: 100 | G92: 100 | H92: 100 | I92: 100 | J92: 100 | K92: 100 | L92: 100 | M92: 100 | N92: 100 | O92: 100 | P92: 100
A93: Melanoma of skin | B93: 0.96 | C93: 97.8 | D93: 98.45368158 | E93: 98.94890029 | F93: 99.5 | G93: 98.2 | H93: 99.36 | I93: 99 | J93: 98.9955 | K93: 98.38987924 | L93: 98.27586207 | M93: 99.86996099 | N93: 99.89929507 | O93: 91.9 | P93: 99.6
A94: Colorectal | B94: 0.87 | C94: 88.4 | D94: 89.97828959 | E94: 90.07236045 | F94: 90 | G94: 87.7 | H94: 90.87 | I94: 91.8 | J94: 89.6104 | K94: 90.26857342 | L94: 90.28001287 | M94: 90.04989727 | N94: 91.38230191 | O94: 85.2 | P94: 92.6
A95: Prostate | B95: 0.86 | C95: 89.1 | D95: 90.07248414 | E95: 90.03095658 | F95: 89.5 | G95: 90.6 | H95: 91.48 | I95: 94.9 | J95: 87.2796 | K95: 89.59268495 | L95: 85.55821099 | M95: 91.33715666 | N95: 89.14967295 | O95: 88.4 | P95: 93
A96: Bladder | B96: 0.89 | C96: 90 | D96: 91.02791468 | E96: 91.8762657 | F96: 94.1 | G96: 87.3 | H96: 93.11 | I96: 94.4 | J96: 91.188 | K96: 92.05714286 | L96: 90.07391763 | M96: 92.78106509 | N96: 92.89693593 | O96: 85 | P96: 88.4
A97: Haematology | B97: 0.82 | C97: 87 | D97: 89.84248791 | E97: 90.65321045 | F97: 96.4 | G97: 72.9 | H97: 96.47 | I97: 97.6 | J97: 91.4139 | K97: 92.04244032 | L97: 94.76297968 | M97: 83.63636364 | N97: 95.84168337 | O97: 80.9 | P97: 86.3
A98: All xnmsc Male | B98: 0.8 | C98: 82.5 | D98: 84.42241726 | E98: 84.92593161 | F98: 85.3 | G98: 79.6 | H98: 86.13 | I98: 90.1 | J98: 84.663 | K98: 85.22305599 | L98: 84.14066672 | M98: 84.25073017 | N98: 84.73913697 | O98: 80.1 | P98: 84.4
A99: All xnmsc Female | B99: 0.81 | C99: 84 | D99: 85.92777473 | E99: 86.38010518 | F99: 86.2 | G99: 80 | H99: 90.17 | I99: 89.7 | J99: 86.194 | K99: 86.54056906 | L99: 86.17898833 | M99: 86.05728403 | N99: 86.26468061 | O99: 80.7 | P99: 87.2
A100: Table 2H % Non-specificity of morphology codes for cases which are microscopically verified
A101: Lung | C101: 8.971347061 | D101: 6.986911673 | E101: 3.999909351 | F101: 4.7 | G101: 5.5 | H101: 2.04 | I101: 4.3 | J101: 0.0351 | K101: 8.374500118 | L101: 3.000750188 | M101: 4.048924504 | N101: 5.156753589 | O101: 8.3 | P101: 31.4
A102: Breast Invasive | C102: 4.37299399 | D102: 3.321957984 | E102: 2.945517612 | F102: 2.3 | G102: 3.5 | H102: 3.7 | I102: 3 | J102: 3.7956 | K102: 3.482118849 | L102: 2.225797801 | M102: 1.56062425 | N102: 3.47739692 | O102: 1.9 | P102: 7.6
A103: Breast In Situ | C103: 3.43753531 | D103: 1.02055239 | E103: 0.4716385312 | F103: 0 | G103: 0.6 | H103: 0.32 | I103: 0 | J103: 1.7773 | K103: 0.641025641 | L103: 0.4347826087 | M103: 0 | N103: 3.652968037 | O103: 1.5 | P103: 2.3
A104: Cervix Invasive | C104: 2.801349418 | D104: 2.261372849 | E104: 2.301817245 | F104: 3.5 | G104: 2.7 | H104: 1.73 | I104: 0.9 | J104: 4.7923 | K104: 2.132701422 | L104: 1.090909091 | M104: 1.568627451 | N104: 1.76056338 | O104: 3.5 | P104: 1.2
A105: Cervix In Situ | C105: 0.2063281798 | D105: 0.07575157439 | E105: 0.07915841478 | F105: 0 | G105: 0 | H105: 0 | I105: 0.1 | J105: 0.2447 | K105: 0.02200220022 | L105: 0.2665651181 | M105: 0 | N105: 0 | O105: 0.2 | P105: 0
A106: Melanoma of skin | C106: 0.03257575758 | D106: 0 | E106: 0 | F106: 0 | G106: 0 | H106: 0 | I106: 0 | J106: 0 | K106: 0 | L106: 0 | M106: 0 | N106: 0 | O106: 0 | P106: 0
A107: Colorectal | C107: 2.61741315 | D107: 2.177476017 | E107: 1.902890282 | F107: 1.7 | G107: 2.6 | H107: 0.86 | I107: 1.5 | J107: 2.2544 | K107: 3.786707883 | L107: 1.28342246 | M107: 1.238591917 | N107: 1.329113924 | O107: 5.8 | P107: 1.6
A108: Prostate | C108: 2.1655479 | D108: 1.391812324 | E108: 0.9829424201 | F108: 0.95 | G108: 1.2 | H108: 0.33 | I108: 0.8 | J108: 0 | K108: 2.393765077 | L108: 1.396648045 | M108: 0.7931262393 | N108: 2.546396202 | O108: 3.5 | P108: 1.4
A109: Bladder | C109: 2.64618293 | D109: 2.420455864 | E109: 2.296979886 | F109: 2.1 | G109: 3.5 | H109: 0.96 | I109: 3.8 | J109: 2.5022 | K109: 2.979515829 | L109: 1.64126612 | M109: 0.8928571429 | N109: 1.649175412 | O109: 2.2 | P109: 4.4
A110: Haematology | C110: 6.212681886 | D110: 4.852825973 | E110: 3.978026461 | F110: 4.8 | G110: 5.7 | H110: 0.85 | I110: 2.7 | J110: 5.0094 | K110: 5.307396734 | L110: 5.812291567 | M110: 1.645123384 | N110: 2.45687402 | O110: 6.2 | P110: 12.9
A111: All xnmsc Male | C111: 4.339170149 | D111: 3.442406008 | E111: 2.727949851 | F111: 2.6 | G111: 3.5 | H111: 0.86 | I111: 2.5 | J111: 2.5387 | K111: 4.668601838 | L111: 2.765185857 | M111: 2.391111111 | N111: 1.942867282 | O111: 5.7 | P111: 8.4
A112: All xnmsc Female | C112: 5.061958051 | D112: 4.174885182 | E112: 3.482130333 | F112: 3.2 | G112: 4.9 | H112: 1.66 | I112: 3.4 | J112: 4.5523 | K112: 4.859059144 | L112: 3.007043525 | M112: 2.278639993 | N112: 2.166694338 | O112: 6.1 | P112: 9.8
A113: Table 2I Mortality : Incidence ratios
A114: Lung | C114: 0.86 | D114: 0.8629658533 | E114: 0.86549139 | F114: 0.86 | G114: 0.92 | H114: 0.9 | I114: 0.86 | J114: 0.839 | K114: 0.8683148335 | L114: 0.8081554461 | M114: 0.8684608406 | N114: 0.8686932658 | O114: 0.82 | P114: 0.88
A115: Breast Invasive | C115: 0.27 | D115: 0.261907913 | E115: 0.2614161676 | F115: 0.28 | G115: 0.27 | H115: 0.26 | I115: 0.25 | J115: 0.2426 | K115: 0.265203357 | L115: 0.2620418848 | M115: 0.2614840989 | N115: 0.2596577017 | O115: 0.26 | P115: 0.27
A116: Cervix Invasive | C116: 0.38 | D116: 0.3182424738 | E116: 0.3262303087 | F116: 0.35 | G116: 0.36 | H116: 0.37 | I116: 0.29 | J116: 0.3282 | K116: 0.3064516129 | L116: 0.29390681 | M116: 0.3112840467 | N116: 0.3608247423 | O116: 0.34 | P116: 0.19
A117: Melanoma of skin | C117: 0.18 | D117: 0.1969251584 | E117: 0.1938775812 | F117: 0.19 | G117: 0.19 | H117: 0.18 | I117: 0.21 | J117: 0.1814 | K117: 0.2098907418 | L117: 0.1712643678 | M117: 0.2184655397 | N117: 0.1651560926 | O117: 0.21 | P117: 0.24
A118: Colorectal | C118: 0.44 | D118: 0.4175568832 | E118: 0.4160088462 | F118: 0.42 | G118: 0.43 | H118: 0.41 | I118: 0.42 | J118: 0.3791 | K118: 0.4363446111 | L118: 0.4058577406 | M118: 0.426768418 | N118: 0.4450549451 | O118: 0.42 | P118: 0.4
A119: Prostate | C119: 0.29 | D119: 0.2766020199 | E119: 0.2809381082 | F119: 0.27 | G119: 0.3 | H119: 0.28 | I119: 0.24 | J119: 0.28 | K119: 0.2879467997 | L119: 0.3052236258 | M119: 0.2843344401 | N119: 0.3051173528 | O119: 0.23 | P119: 0.26
A120: Bladder | C120: 0.47 | D120: 0.4816928223 | E120: 0.4780344552 | F120: 0.46 | G120: 0.51 | H120: 0.51 | I120: 0.43 | J120: 0.4792 | K120: 0.4474285714 | L120: 0.48468849 | M120: 0.5029585799 | N120: 0.6643454039 | O120: 0.33 | P120: 0.48
A121: Haematology | C121: 0.49 | D121: 0.4916389756 | E121: 0.50187283 | F121: 0.53 | G121: 0.62 | H121: 0.53 | I121: 0.45 | J121: 0.4542 | K121: 0.4765694076 | L121: 0.4343115124 | M121: 0.5199017199 | N121: 0.5230460922 | O121: 0.44 | P121: 0.43
A122: All xnmsc Male | C122: 0.54 | D122: 0.5290562052 | E122: 0.5284782557 | F122: 0.53 | G122: 0.58 | H122: 0.55 | I122: 0.47 | J122: 0.4916 | K122: 0.5275830791 | L122: 0.529178427 | M122: 0.5494645398 | N122: 0.5817922117 | O122: 0.49 | P122: 0.52
A123: All xnmsc Female | C123: 0.51 | D123: 0.4971516321 | E123: 0.4955277794 | F123: 0.49 | G123: 0.55 | H123: 0.53 | I123: 0.48 | J123: 0.4525 | K123: 0.4919430125 | L123: 0.4713618677 | M123: 0.4984173551 | N123: 0.5344457176 | O123: 0.49 | P123: 0.48
A124: Table 3A Completeness of the dataset - demographics and diagnostic details
A125: Patient's name | D125: 100 | E125: 100 | F125: 100 | G125: 100 | H125: 100 | I125: 100 | J125: 100 | K125: 100 | L125: 100 | M125: 100 | N125: 100 | O125: 100 | P125: 100
A126: Patient's address | D126: 99.88987793 | E126: 99.93608215 | F126: 100 | G126: 100 | H126: 99.98 | I126: 100 | J126: 100 | K126: 99.558228 | L126: 99.98844331 | M126: 99.96198586 | N126: 100 | O126: 100 | P126: 99.3
A127: Sex | D127: 99.99454545 | E127: 99.9925 | F127: 100 | G127: 100 | H127: 99.94 | I127: 100 | J127: 100 | K127: 100 | L127: 100 | M127: 100 | N127: 100 | O127: 100 | P127: 100
A128: Ethnicity | D128: 50.02899368 | E128: 64.6946314 | F128: 41.4 | G128: 74.01 | H128: 48.6 | I128: 33.4 | J128: 75.84 | K128: 78.98719679 | L128: 86.46712123 | M128: 78.85273322 | N128: 0.8618792636 | O128: 31.9 | P128: 0
A129: Date of death (where dead) | D129: 100 | E129: 100 | F129: 100 | G129: 100 | H129: 100 | I129: 100 | J129: 100 | K129: 100 | L129: 100 | M129: 100 | N129: 100 | O129: 100 | P129: 100
A130: Postcode | B130: 1 | D130: 99.87605036 | E130: 99.99206925 | F130: 100 | G130: 100 | H130: 100 | I130: 100 | J130: 100 | K130: 99.9897738 | L130: 100 | M130: 99.9467802 | N130: 100 | O130: 100 | P130: 98.7
A131: Date of birth | B131: 1 | D131: 100 | E131: 100 | F131: 100 | G131: 100 | H131: 100 | I131: 100 | J131: 100 | K131: 100 | L131: 100 | M131: 100 | N131: 100 | O131: 100 | P131: 100
A132: Unique health identifier | B132: 1 | D132: 99.01412755 | E132: 99.55203834 | F132: 99.9 | G132: 99.77 | H132: 99.38 | I132: 99.6 | J132: 99.89 | K132: 98.99169632 | L132: 99.88058092 | M132: 99.0040295 | N132: 99.03909631 | O132: 100 | P132: 93.7
A133: Anniversary (diagnosis) date | B133: 1 | D133: 99.64443126 | E133: 99.51109298 | F133: 100 | G133: 100 | H133: 97.95 | I133: 100 | J133: 100 | K133: 98.24518346 | L133: 100 | M133: 99.8935604 | N133: 100 | O133: 100 | P133: 100
A134: Site of primary growth | B134: >95% | D134: 96.38714921 | E134: 96.59695094 | F134: 100 | G134: 95.78 | H134: 95.93 | I134: 96.3 | J134: 96.52 | K134: 96.21425942 | L134: 96.18629377 | M134: 95.84505436 | N134: 96.08303382 | O134: 96.1 | P134: 95.3
A135: Type of growth | B135: >85% | D135: 88.42212598 | E135: 89.03363968 | F135: 100 | G135: 85.07 | H135: 86.69 | I135: 91.4 | J135: 86.43 | K135: 88.66732114 | L135: 87.4764051 | M135: 86.53539117 | N135: 87.57426832 | O135: 89.3 | P135: 83.5
A136: Behaviour of growth | B136: >98% | D136: 99.83318127 | E136: 99.7710827 | F136: 100 | G136: 100 | H136: 98.41 | I136: 100 | J136: 100 | K136: 99.75866159 | L136: 100 | M136: 100 | N136: 99.99633243 | O136: 100 | P136: 100
A137: Basis of diagnosis | B137: >96% | D137: 98.61118168 | E137: 99.10281613 | F137: 99.7 | G137: 99.72 | H137: 99.04 | I137: 97.5 | J137: 100 | K137: 99.38847302 | L137: 97.55768712 | M137: 99.91636889 | N137: 99.20046945 | O137: 94.4 | P137: 98.3
A138: Table 3B Completeness of the dataset - treatment and screening information
A139: Therapeutic Surgery (% yes) | D139: =(SUM(F139:P139))/11 -> 45.72319468 | E139: =(SUM(F139:M139))/8 -> 44.65010737 | F139: 50.1 | G139: 43.1 | H139: 42.94 | I139: 46 | J139: 49.9153 | K139: 43.8029206 | L139: 35.7332717 | M139: 45.60936668 | N139: 42.64651947 | O139: 56.007763 | P139: 47.1
A140: Radiotherapy (% yes) | D140: 16.39464238 | E140: 16.08120384 | F140: 20.4 | G140: 20.8 | H140: 19.15 | I140: 17.4 | J140: 9.9904 | K140: 16.35783532 | L140: 4.175815709 | M140: 20.37557972 | N140: 19.59216607 | O140: 11.19926936 | P140: 20.9
A141: Chemotherapy (% yes) | D141: 21.12077164 | E141: 20.72237548 | F141: 22.2 | G141: 19.8 | H141: 25.57 | I141: 20.3 | J141: 22.3018 | K141: 21.56706344 | L141: 22.65110366 | M141: 11.38903672 | N141: 25.57030734 | O141: 19.17917689 | P141: 21.8
A142: Breast cancer - Hormone (% yes) | D142: 23.82698919 | E142: 25.78167004 | F142: 48.5 | G142: 13.1 | H142: 57.48 | I142: 8.1 | J142: 11.8273 | K142: 34.53200052 | L142: 11.09947644 | M142: 21.61458333 | N142: 55.84352078 | O142: 0 | P142: 0
A143: Prostate cancer - Hormone (% yes) | D143: 26.15494469 | E143: 31.48536523 | F143: 49.4 | G143: 36.1 | H143: 50.75 | I143: 25.3 | J143: 27.4317 | K143: 28.07513298 | L143: 11.40320929 | M143: 23.42287957 | N143: 35.8214698 | O143: 0 | P143: 0
A144: All xnmsc - any treatment, ages 0-24 | D144: 85.24010057 | E144: 84.10298845 | F144: 88.6 | G144: 62.5 | H144: 96.61 | I144: 84.1 | J144: 91.8719 | K144: 90.27355623 | L144: 78.24561404 | M144: 80.62283737 | N144: 93.60902256 | O144: 89.3081761 | P144: 81.9
A145: All xnmsc - any treatment, ages 25-64 | D145: 82.44079047 | E145: 82.43861463 | F145: 87.8 | G145: 80.2 | H145: 90.93 | I145: 81.4 | J145: 83.1415 | K145: 89.20714441 | L145: 67.32181425 | M145: 79.50845835 | N145: 83.61470741 | O145: 86.3250707 | P145: 77.4
A146: All xnmsc - any treatment, ages 65+ | D146: 61.85058191 | E146: 60.96843167 | F146: 67.2 | G146: 56.4 | H146: 71.01 | I146: 59.9 | J146: 59.7949 | K146: 75.67458989 | L146: 43.1765566 | M146: 54.59140691 | N146: 59.31968867 | O146: 63.08925897 | P146: 70.2
A147: Colorectal Cancer - any treatment, ages 0-64 | D147: 88.62284083 | E147: 89.0786257 | F147: 93.4 | G147: 89.6 | H147: 93.13 | I147: 88.1 | J147: 89.8515 | K147: 92.57105943 | L147: 79.9031477 | M147: 86.07329843 | N147: 91.29511677 | O147: 89.72712681 | P147: 81.2
A148: Colorectal Cancer - any treatment, ages 65+ | D148: 76.14236132 | E148: 75.70409654 | F148: 79 | G148: 73.6 | H148: 78.76 | I148: 72.4 | J148: 76.5741 | K148: 84.70728793 | L148: 65.67295046 | M148: 74.91843393 | N148: 77.02702703 | O148: 74.60617517 | P148: 80.3
A149: Female Breast Cancer - any treatment, ages 0-64 | D149: 95.24417135 | E149: 95.40232579 | F149: 96.1 | G149: 93.3 | H149: 99.21 | I149: 94.6 | J149: 94.8525 | K149: 94.6261148 | L149: 93.36470588 | M149: 97.16528565 | N149: 98.36363636 | O149: 95.80364212 | P149: 90.3
A150: Female Breast Cancer - any treatment, ages 65+ | D150: 82.27536275 | E150: 82.83181913 | F150: 91.5 | G150: 72.6 | H150: 95.99 | I150: 85.4 | J150: 84.5033 | K150: 88.25825826 | L150: 67.55162242 | M150: 76.85137235 | N150: 93.86243386 | O150: 72.61200338 | P150: 75.9
A151: Prostate Cancer - any treatment, ages 0-64 | D151: 68.17354809 | E151: 68.46444013 | F151: 72.5 | G151: 69.6 | H151: 96.71 | I151: 58 | J151: 54.7297 | K151: 92.2235723 | L151: 41.8879056 | M151: 62.06434316 | N151: 61.17103236 | O151: 93.32247557 | P151: 47.7
A152: Prostate Cancer - any treatment, ages 65+ | D152: 62.17884869 | E152: 63.3476759 | F152: 71.8 | G152: 61.4 | H152: 96.15 | I152: 55.5 | J152: 50.6065 | K152: 84.89702517 | L152: 35.31763661 | M152: 51.11024542 | N152: 58.82051282 | O152: 77.26541555 | P152: 41.1
A154: Breast cancer - % screen detected for ages 50-67 | D154: 47.16073432 | E154: 48.87172072 | F154: 50.2 | G154: 44.4 | H154: 51.8 | I154: 51 | J154: 49.2 | K154: 40.4494382 | L154: 50.77541643 | M154: 53.14891112 | N154: 44.99431172 | O154: 50 | P154: 32.8
A155: Breast cancer - % with full screening category for ages 50-67 | D155: 70.1703948 | E155: 74.37376952 | F155: 50.2 | G155: 82.5 | H155: 97.7 | I155: 95 | J155: 55.39 | K155: 40.4494382 | L155: 73.75071798 | M155: 100 | N155: 94.08418658 | O155: 50 | P155: 32.8
A156: Cervical cancer - % screen detected for ages 25-67 | D156: 14.44834055 | E156: 16.08869048 | F156: 4.4 | G156: 30.2 | H156: 21.94 | I156: 41.1 | J156: 7.26 | K156: 0 | L156: 0 | M156: 23.80952381 | N156: 30.22222222 | O156: 0 | P156: 0
A157: Table 3C Completeness of the dataset - specific staging information including grade
A158: Stage - Breast cancer - % with known Bloom and Richardson grade | B158: >78% | D158: 86.25310998 | E158: 86.78681284 | F158: 89.4 | G158: 86.3 | H158: 89.88 | I158: 88.9 | J158: 86.7107 | K158: 77.45034402 | L158: 84.55497382 | M158: 91.09848485 | N158: 86.79706601 | O158: 82.99264105 | P158: 84.7
A159: Stage - Breast cancer - % with known number of positive nodes | B159: >65% | D159: 53.81680472 | E159: 53.24423619 | F159: 73.9 | G159: 65.8 | H159: 0 | I159: 72 | J159: 71.1985 | K159: 65.85745813 | L159: 0 | M159: 77.19793136 | N159: 79.63325183 | O159: 3.597710548 | P159: 82.8
A160: Stage - Breast cancer - % with known invasive size | B160: >65% | D160: 61.77247369 | E160: 64.7282688 | F160: 86.5 | G160: 69.9 | H160: 82.87 | I160: 62.2 | J160: 74.7101 | K160: 62.91055433 | L160: 0 | M160: 78.73549609 | N160: 70.07334963 | O160: 3.597710548 | P160: 88
A161: Stage - Breast cancer - % with known NPI score | B161: >65% | D161: 48.96686814 | E161: 48.52902694 | F161: 71 | G161: 62.8 | H161: 0 | I161: 57.8 | J161: 67.6707 | K161: 51.90185642 | L161: 0 | M161: 77.05965909 | N161: 65.30562347 | O161: 3.597710548 | P161: 81.5
A162: Stage - Colorectal cancer - % with known pathological Dukes stage | B162: >74% | D162: 68.84490841 | E162: 69.28229988 | F162: 85.7 | G162: 62.5 | H162: 75.75 | I162: 66.4 | J162: 77.0563 | K162: 50.8545518 | L162: 64.14547795 | M162: 71.85206927 | N162: 77.99305957 | O162: 48.64253394 | P162: 76.4
A163: Stage - Cervical cancer - % with complete FIGO stage | B163: >70% | D163: 64.74842466 | E163: 66.91408176 | F163: 92.2 | G163: 59.8 | H163: 92.13 | I163: 86.6 | J163: 74.8466 | K163: 52.30414747 | L163: 0 | M163: 77.43190661 | N163: 75.94501718 | O163: 9.375 | P163: 91.6
A164: Stage - Melanoma of the skin cancer - % with known Breslow thickness | B164: >80% | D164: 77.92740604 | E164: 76.52016102 | F164: 90.6 | G164: 82.5 | H164: 93.33 | I164: 95.3 | J164: 86.1049 | K164: 68.48763657 | L164: 0 | M164: 95.83875163 | N164: 93.85699899 | O164: 55.0831793 | P164: 96.1
A165: Stage - Melanoma of the skin cancer - % with known Clark level | B165: >80% | D165: 58.36737835 | E165: 53.38266225 | F165: 82.3 | G165: 70.2 | H165: 92.88 | I165: 0 | J165: 81.9754 | K165: 6.7280046 | L165: 0 | M165: 92.97789337 | N165: 84.29003021 | O165: 35.48983364 | P165: 95.2
A166: % NHS path labs not supplying data to the registry | D166: 1.763636364 | E166: 1.5375 | F166: 0 | G166: 0 | H166: 0 | I166: 0 | J166: 0 | K166: 2.3 | L166: 10 | M166: 0 | N166: 0 | O166: 7.1 | P166: 0
A167: % NHS path labs not using valid breast grade | D167: 0 | E167: 0 | F167: 0 | G167: 0 | H167: 0 | I167: 0 | J167: 0 | K167: 0 | L167: 0 | M167: 0 | N167: 0 | O167: 0 | P167: 0
A168: Table 4A 2 year % completeness of ascertainment using the Flow method
A169: Lung | C169: 0.95
A170: Breast Invasive | C170: 0.95
A171: Breast In Situ | C171: 0.95
A172: Cervix Invasive | C172: 0.95
A173: Cervix In Situ | C173: 0.95
A174: Melanoma of skin | C174: 0.95
A175: Colorectal | C175: 0.95
A176: Prostate | C176: 0.95
A177: Bladder | C177: 0.95
A178: Haematology | C178: 0.95
A179: All xnmsc Male | C179: 0.95
A180: All xnmsc Female | C180: 0.95
A181: Table 4B 5 year % completeness of ascertainment using the Flow method
A182: Lung | C182: 0.95
A183: Breast Invasive | C183: 0.95
A184: Breast In Situ | C184: 0.95
A185: Cervix Invasive | C185: 0.95
A186: Cervix In Situ | C186: 0.95
A187: Melanoma of skin | C187: 0.95
A188: Colorectal | C188: 0.95
A189: Prostate | C189: 0.95
A190: Bladder | C190: 0.95
A191: Haematology | C191: 0.95
A192: All xnmsc Male | C192: 0.95
A193: All xnmsc Female | C193: 0.95
A194: * 2007 for Scotland

Sheet Table 4
A1: TABLE 4: | C1: Trends in timeliness (as reported by registries)
A2: Proportion (%) of registrations completed (ONS Ready) within 18 months of year end (Target: 100%*)
A4: Registry | C4: 1997 | D4: 1998 | E4: 1999 | F4: 2000 | G4: 2001 | H4: 2002 | I4: 2003 | J4: 2004 | K4: 2005 | L4: 2006 | M4: 2007
C5: by 06/99 | D5: by 06/00 | E5: by 06/01 | F5: by 06/02 | G5: by 06/03 | H5: by 06/04 | I5: by 06/05 | J5: by 06/06 | K5: by 06/07 | L5: by 06/08 | M5: by 06/09
A6: England (average) | F6: 98 | G6: 96 | H6: 96.76464118 | I6: 99.11665632 | J6: 101.1848935 | K6: 101.020326 | L6: 100.2579687 | M6: 99.78616369
A7: Scotland | C7: 73.50304431 | D7: 44.30475433 | E7: 30.04756668 | F7: 25.07479789 | G7: 30.18904621 | H7: 44.69773349 | I7: 71.60161681 | J7: 59.7356458 | K7: 54.3955635 | L7: 48.23379798 | M7: 66.62639133
A8: Wales | C8: 103.1165265 | D8: 98.66914971 | E8: 103.6603221 | F8: 103.9161124 | G8: 101.1446691 | H8: 98.99601455 | I8: 104.6031335 | J8: 105.9888901 | K8: 101.8505644 | L8: 103.1327139 | M8: 103.4199807
A9: Northern Ireland | F9: 0 | G9: 0 | H9: 102.552994 | I9: 103.7741592 | J9: 104.6294927 | K9: 99.98077755 | L9: 103.2837787 | M9: 107.0548609
A10: UK average1 | C10: 80.19815296 | D10: 86.546234 | E10: 74.75341836 | F10: 90.56210103 | G10: 90 | H10: 92.19649564 | I10: 96.9623943 | J10: 97.67112622 | K10: 96.66247879 | L10: 95.66149769 | M10: 97.12358225
A12: * | B12: The target for completeness was originally 90%. This changed to 100% for the 2000 diagnosis data, reported in 2002.
A13: 1 | B13: GB average prior to 2002 published report
A14: Note: 1998 report published data were not included here because the definition of "ONS Ready" changed from 1999 onwards

Sheet Table 5
A1: TABLE 5: | C1: Trends in timeliness (as reported by ONS)
A2: Proportion (%) of registrations received by ONS within 18 months
A3: of year end (Target: 100%*)
A4: (as percentage of the previous 3 complete years held by ONS**)
A6: Registry | C6: 1999 | D6: 2000 | E6: 2001 | F6: 2002 | G6: 2003 | H6: 2004 | I6: 2005 | J6: 2006 | K6: 2007
C7: by 06/01 | D7: by 06/02 | E7: by 06/03 | F7: by 06/04 | G7: by 06/05 | H7: by 06/06 | I7: by 06/07 | J7: by 06/08 | K7: by 06/09
A8: England (average) | C8: 68.07785867 | D8: 64.19058456 | E8: 85.74858443 | F8: 95.7207699 | G8: 99.75093007 | H8: 101.3419628 | I8: 101.3419628 | J8: 101.1354375 | K8: 99.41474199
B9: Eastern | C9: 120.8423944 | D9: 87.39685573 | E9: 84.8669137 | F9: 94.35276468 | G9: 102.0042181 | H9: 101.9874454 | I9: 105 | J9: 101.1689803 | K9: 102.8
B10: North West | C10: 59.98075791 | D10: 0 | E10: 39.72491258 | F10: 97.1072818 | G10: 100.2188708 | H10: 103.9566907 | I10: 105 | J10: 105.0121877 | K10: 98.45510489
B11: Northern & Yorkshire | C11: 76.82583281 | D11: 73.24855491 | E11: 69.4729334 | F11: 98.08778114 | G11: 99.42073226 | H11: 98.59926105 | I11: 93 | J11: 95.77791479 | K11: 95.46333551
B12: Oxford | C12: 110.0673134 | D12: 100.7007708 | E12: 100.3233339 | F12: 95.89455488 | G12: 99.76343513 | H12: 105.5568218 | I12: 98 | J12: 99.96209865 | K12: 98.52089882
B13: South & West | C13: 1.269749657 | D13: 0 | E13: 78.70584375 | F13: 95.87951493 | G13: 101.4005661 | H13: 102.2959948 | I13: 101 | J13: 102.6259493 | K13: 97.55068421
B14: Thames | C14: 0 | D14: 94.43227881 | E14: 92.6654232 | F14: 91.73447908 | G14: 97.01101184 | H14: 97.11968303 | I14: 98 | J14: 99.62008684 | K14: 100.3
B15: Trent | C15: 105.8115706 | D15: 103.0566382 | E15: 102.413006 | F15: 95.38000983 | G15: 99.80989695 | H15: 108.0967069 | I15: 108.0967069 | J15: 104.0294539 | K15: 103.4062862
B16: West Midlands | C16: 99.13604947 | D16: 85.01722891 | E16: 98.07531614 | F16: 101.0069853 | G16: 102.4855733 | H16: 101.5148282 | I16: 100 | J16: 100.8868282 | K16: 100.3044486
A18: * | B18: The target for completeness was originally 90%. This changed to 100% for the 2000 diagnosis data, reported in 2002.
A19: ** | B19: The % complete data were supplied via the management reports supplied quarterly by ONS, without any intervention
A20: ** Note: The % used in this table DIFFERS from the one used in table 1.

Sheet Table 6
A1: TABLE 6: | C1: Trends in % Death Certificate Only
A3: % DCO: males (target: 2%)
A4: Registry | C4: Year report published 1
C5: 1998 | D5: 1999 | E5: 2000 | F5: 2001 | G5: 2002 | H5: 2003 | I5: 2004 | J5: 2005 | K5: 2006 | L5: 2007 | M5: 2008 | N5: 2009
A6: England (average) | G6: 4.5 | H6: 5.1 | I6: 4.755555556 | J6: 4.193548495 | K6: 3.62130609 | L6: 4.107373987 | M6: 3.6375 | N6: =(SUM(N7:N14))/8 -> 2.753353205
B7: Eastern 2 | C7: 0.07 | D7: 0.3 | E7: 0.2 | F7: 0.4 | G7: 0.3 | H7: 0.19 | I7: 0.5 | J7: 0.23 | K7: 0.07 | L7: 4.8 | M7: 1.3 | N7: 0.007
B8: North West 3 | C8: 3.233001283 | D8: 1.015318893 | E8: 2.412524512 | F8: 3.329832065 | G8: 3.863253007 | H8: 6.216340563 | I8: 5.882929684 | J8: 4.826905372 | K8: 4.716464177 | L8: 5.156007 | M8: 4.8 | N8: 6.6
B9: Northern & Yorkshire4 | C9: 2.684120057 | D9: 5.25 | E9: 0.9 | F9: 1.4 | G9: 1.6 | H9: 1.4 | I9: 1.9 | J9: 1.6 | K9: 1.5 | L9: 2.1 | M9: 1.7 | N9: 1.93
B10: Oxford | C10: 6.7 | D10: 1.4 | E10: 2.1 | F10: 1.1 | G10: 0.7 | H10: 1.6 | I10: 1.3 | J10: 1.2 | K10: 3.3 | L10: 2 | M10: 2.6 | N10: 1
B11: South & West | C11: 6.082402675 | D11: 8 | E11: 9.154057772 | F11: 8.014877917 | G11: 10.6 | H11: 8.2 | I11: 7.6 | J11: 3.9 | K11: 3.3 | L11: 1.87 | M11: 1.3 | N11: 1.4156
B12: Thames 2 | C12: 21.01701396 | D12: 15.42236115 | E12: 16 | F12: 11.8 | G12: 7.1 | H12: 6.861841378 | I12: 4.8 | J12: 4.368755014 | K12: 4.677211566 | L12: 4.342486183 | M12: 3 | N12: 2.094499876
B13: Trent 5 | D13: 9.03 | E13: 7.6 | F13: 7.686387686 | G13: 9.14770608 | H13: 9.3 | I13: 6.7 | J13: 5.994377437 | K13: 3.423003248 | L13: 2.589721045 | M13: 2.3 | N13: 2.074910367
B14: West Midlands | C14: 10 | D14: 6.7 | E14: 6.2 | F14: 12.1 | G14: 5.5 | H14: 5.5 | I14: 9.2 | J14: 9.4 | K14: 6.3 | L14: 10.00077767 | M14: 12.1 | N14: 6.904815397
A15: Scotland | C15: 2.4 | D15: 2.3 | E15: 0.93 | F15: 0.5219985086 | G15: 0.5244755245 | H15: 0.52 | I15: 0.5 | J15: 0.8577949162 | K15: 0.6700299543 | L15: 0.6570004531 | M15: 0.5 | N15: 0.5487896557
A16: Wales6 | D16: 10.2 | E16: 4.6 | F16: 3.15 | G16: 3.91 | H16: 6.865747831 | I16: 6.8 | J16: 5.220835334 | K16: 3.143507973 | L16: 3.2 | M16: 2.6 | N16: 2.1
A17: Northern Ireland7 | G17: 1.5 | H17: 1.442150115 | I17: 1.56 | J17: 1.4 | K17: 1.4 | L17: 1.2 | M17: 0.9 | N17: 0.66
A18: UK8 Average | C18: 6.674332431 | D18: 5.482696763 | E18: 4.450338148 | F18: 4.759705836 | G18: 4.0001643 | H18: 4.53820511 | I18: 4.305 | J18: 3.768380558 | K18: 3.150441062 | L18: 3.446908395 | M18: 3.009090909 | N18: =(SUM(N7:N17))/11 -> 2.303237754
A20: % DCO: females (target: 2%)
A21: Registry | C21: Year report published 1
C22: 1998 | D22: 1999 | E22: 2000 | F22: 2001 | G22: 2002 | H22: 2003 | I22: 2004 | J22: 2005 | K22: 2006 | L22: 2007 | M22: 2008 | N22: 2009
A23: England (average) | G23: 4.9 | H23: 5.2 | I23: 4.877777778 | J23: 4.339177974 | K23: 3.802617923 | L23: 3.891515296 | M23: 3.6125 | N23: =(SUM(N24:N31))/8 -> 2.78279734
B24: Eastern 2 | C24: 0.25 | D24: 0.2 | E24: 0.2 | F24: 0.5 | G24: 0.4 | H24: 0.38 | I24: 0.4 | J24: 0.093 | K24: 0.12 | L24: 5 | M24: 1 | N24: 0.04
B25: North West 3 | C25: 3.725895044 | D25: 1.288660721 | E25: 2.711347919 | F25: 3.229575643 | G25: 4.144189409 | H25: 6.132283064 | I25: 5.336588537 | J25: 4.690376474 | K25: 4.482346578 | L25: 4.968281 | M25: 4.8 | N25: 6.2
B26: Northern & Yorkshire4 | C26: 2.703490696 | D26: 5.1 | E26: 1.25 | F26: 1.6 | G26: 2 | H26: 1.7 | I26: 1.8 | J26: 1.5 | K26: 1.3 | L26: 1.68 | M26: 1.6 | N26: 1.92
B27: Oxford | C27: 7.2 | D27: 1.6 | E27: 2.3 | F27: 1 | G27: 1.3 | H27: 1.9 | I27: 1.5 | J27: 1.8 | K27: 3.9 | L27: 1.6 | M27: 2.6 | N27: 1.2
B28: South & West | C28: 6.981410446 | D28: 9 | E28: 9.477645258 | F28: 8.59061173 | G28: 10.9 | H28: 8.5 | I28: 8.7 | J28: 5.5 | K28: 3.6 | L28: 2.22 | M28: 1.6 | N28: 1.8321
B29: Thames 2 | C29: 19.23597644 | D29: 15.71755543 | E29: 16.1 | F29: 11.8 | G29: 7.8 | H29: 7.578003543 | I29: 4.9 | J29: 4.478715538 | K29: 4.831656416 | L29: 3.904443874 | M29: 3 | N29: 2.585542071
B30: Trent 5 | D30: 8.52 | E30: 7.2 | F30: 6.831888428 | G30: 8.348540146 | H30: 9 | I30: 7.2 | J30: 5.567986231 | K30: 3.70705989 | L30: 2.149570903 | M30: 2.2 | N30: 1.968871595
B31: West Midlands | C31: 11 | D31: 7.6 | E31: 6.8 | F31: 11.6 | G31: 5.9 | H31: 5 | I31: 9.8 | J31: 9.4 | K31: 6.9 | L31: 9.60982659 | M31: 12.1 | N31: 6.515865051
A32: Scotland | C32: 2.8 | D32: 2.7 | E32: 0.97 | F32: 0.3161141095 | G32: 0.3291688487 | H32: 0.7 | I32: 0.4 | J32: 0.7981326707 | K32: 0.7233947349 | L32: 0.7492507493 | M32: 0.8 | N32: 0.7662560871
A33: Wales6 | D33: 8 | E33: 5.3 | F33: 3.65 | G33: 4.35 | H33: 7.582357746 | I33: 6.3 | J33: 6.006389776 | K33: 4.11196433 | L33: 4.1 | M33: 2.9 | N33: 2.5
A34: Northern Ireland7 | G34: 2.5 | H34: 1.620029455 | I34: 1.29 | J34: 1.7 | K34: 2 | L34: 1.8 | M34: 1.3 | N34: 0.48
A35: UK8 Average | C35: 6.883124388 | D35: 5.506462952 | E35: 4.708970438 | F35: 4.730511273 | G35: 4.29129575 | H35: 4.698479979 | I35: 4.324166667 | J35: 3.963093685 | K35: 3.421576697 | L35: 3.434670283 | M35: 3.081818182 | N35: =(SUM(N24:N34))/11 -> 2.364421346
A37: 1 | B37: Most, but not all, registries' analysis is of the diagnosis year two years prior to report publish year
A38: 2 | B38: Reports from 2007 reflect the boundary change between Eastern and Thames where Eastern includes Hertfordshire and Essex from 2007 onwards
A39: 3 | B39: For all reports, the figures for NWCIS were produced by multiplying the office area-specific estimates for the old MCCR (NWCIS: Liverpool) and NWCR (NWCIS: Manchester) registries by the proportions of ONS Ready cases reported for each area for each year
A40: 4 | B40: For 1998, 1999 and 2000 reports the separate estimates for Northern and Yorkshire registries have been averaged
A41: 5 | B41: In 1998 Trent submitted data for 1997 registrations, which was too soon after the calendar year was completed so the figures are not shown
A42: 6 | B42: Wales did not submit any data until the report published in 1999
A43: 7 | B43: Northern Ireland did not submit any data until the report published in 2002
A44: 8 | B44: GB average prior to 2002; England & Scotland average in 1998 report

Sheet Table 7
A1: TABLE 7: | C1: Trends in % Microscopically verified
A3: % Microscopically verified: males
A4: Registry | C4: Year report published 1
C5: 1998 | D5: 1999 | E5: 2000 | F5: 2001 | G5: 2002 | H5: 2003 | I5: 2004 | J5: 2005 | K5: 2006 | L5: 2007 | M5: 2008 | N5: 2009
A6: England (average) | G6: 79.4 | H6: 81.1 | I6: 80.95638767 | J6: 81.74410818 | K6: 82.69652453 | L6: 83.0803047 | M6: 84.325 | N6: =(SUM(N7:N14))/8 -> 84.92593161
B7: Eastern 2 | C7: 81.5 | D7: 82 | E7: 89.9 | F7: 82.2 | G7: 85.5 | H7: 85.7 | I7: 86.3 | J7: 86.9 | K7: 86.6 | L7: 82.5 | M7: 84.8 | N7: 85.3
B8: North West 3 | C8: 77.98578336 | D8: 78.08066026 | E8: 76.91997627 | F8: 79.96418225 | G8: 78.5220462 | H8: 80.8459865 | I8: 77.42729117 | J8: 76.44384931 | K8: 77.53117 | L8: 76.40002 | M8: 77.7 | N8: 79.6
B9: Northern & Yorkshire4 | C9: =(70.01332741004+78.05)/2 -> 74.03166371 | D9: 75.6 | E9: =(79.1+82.2)/2 -> 80.65 | F9: 82.8 | G9: 84.3 | H9: 85.1 | I9: 84.8 | J9: 85.1 | K9: 85.3 | L9: 86.21 | M9: 86.9 | N9: 86.13
B10: Oxford | C10: 82 | D10: 84.6 | E10: 86.1 | F10: 86 | G10: 88.5 | H10: 87.7 | I10: 87.5 | J10: 87.8 | K10: 86.3 | L10: 87.5 | M10: 86.8 | N10: 90.1
B11: South & West | C11: 76.04786504 | D11: 77 | E11: 85.81536388 | F11: 81.19340032 | G11: 63.4 | H11: 72.2 | I11: 77.2 | J11: 82.5 | K11: 85.4 | L11: 84.31 | M11: 82.4 | N11: 84.663
B12: Thames 2 | C12: 66.6 | D12: 69.1552777 | E12: 70.1 | F12: 73.3 | G12: 76 | H12: 77.9580399 | I12: 77.97315885 | J12: 79.91393771 | K12: 79.98139135 | L12: 81.78348978 | M12: 84.6 | N12: 85.22305599
B13: Trent5,6 | E13: 70.4 | F13: 74.20875421 | G13: 75.80645161 | H13: 76.8 | I13: 77.7184102 | J13: 78.33499592 | K13: 81.48579995 | L13: 83.07089761 | M13: 83.6 | N13: 84.14066672
B14: West Midlands | C14: 75 | D14: 76.9 | E14: 79.4 | F14: 78.9 | G14: 84.5 | H14: 84 | I14: 83.4 | J14: 82.3 | K14: 84.09690946 | L14: 82.86803017 | M14: 87.8 | N14: 84.25073017
A15: Scotland | C15: 81.3 | D15: 80.7 | E15: 84.6 | F15: 84.25718784 | G15: 84.21805467 | H15: 83.9 | I15: 85.41857178 | J15: 84.62449656 | K15: 84.27400284 | L15: 84.89654131 | M15: 86 | N15: 84.73913697
A16: Wales7 | D16: 43 | E16: 43 | F16: 44.11 | G16: 68.16 | H16: 67.89178152 | I16: 66.18205632 | J16: 72.02352376 | K16: 70.91116173 | L16: 77.2 | M16: 77 | N16: 80.1
A17: Northern Ireland8 | G17: 76.1 | H17: 75.35234349 | I17: 78.9 | J17: 82 | K17: 77.6 | L17: 83.5 | M17: 81.1 | N17: 84.4
A18: UK9 Average | C18: 77.07078651 | D18: 78.03684343 | E18: 76.90961366 | F18: 80.20020139 | G18: 78.78608966 | H18: 79.77605041 | I18: 79.92567643 | J18: 81.19541616 | K18: 81.42115711 | L18: 82.74899808 | M18: 83.51818182 | N18: =(SUM(N7:N17))/11 -> 84.42241726
A20: % Microscopically verified: females
A21: Registry | C21: Year report published 1
C22: 1998 | D22: 1999 | E22: 2000 | F22: 2001 | G22: 2002 | H22: 2003 | I22: 2004 | J22: 2005 | K22: 2006 | L22: 2007 | M22: 2008 | N22: 2009
A23: England (average) | G23: 80.3 | H23: 81.4 | I23: 81.68160784 | J23: 82.73304521 | K23: 83.62328358 | L23: 84.91966098 | M23: 85.775 | N23: =(SUM(N24:N31))/8 -> 86.38010518
B24: Eastern 2 | C24: 83.6 | D24: 84.1 | E24: 85.2 | F24: 85 | G24: 86.8 | H24: 85.4 | I24: 87.8 | J24: 88.2 | K24: 87.9 | L24: 83.5 | M24: 86.5 | N24: 86.2
B25: North West 3 | C25: 78.06497104 | D25: 78.31159783 | E25: 77.48201054 | F25: 80.14325556 | G25: 79.13734722 | H25: 80.92812522 | I25: 77.98073869 | J25: 76.39674325 | K25: 77.82587 | L25: 77.66052 | M25: 77.9 | N25: 80
B26: Northern & Yorkshire4 | C26: =(69.394565390116+80.18)/2 -> 74.7872827 | D26: 76.4 | E26: =(79.5+82.7)/2 -> 81.1 | F26: 83.2 | G26: 84.5 | H26: 84.8 | I26: 84.4 | J26: 85.1 | K26: 85.7 | L26: 89.85 | M26: 89.9 | N26: 90.17
B27: Oxford | C27: 83 | D27: 84.9 | E27: 86.8 | F27: 87.6 | G27: 87.8 | H27: 87.3 | I27: 87.5 | J27: 89 | K27: 86.7 | L27: 88.6 | M27: 88.2 | N27: 89.7
B28: South & West | C28: 76.38118844 | D28: 77 | E28: 84.87786211 | F28: 81.0675563 | G28: 65.9 | H28: 72.8 | I28: 78.2 | J28: 84.5 | K28: 87.4 | L28: 86.16 | M28: 84.6 | N28: 86.194
B29: Thames 2 | C29: 69.2 | D29: 70.44716975 | E29: 71.3 | F29: 74.8 | G29: 76.2 | H29: 78.28916447 | I29: 79.53493498 | J29: 79.77888103 | K29: 81.45198564 | L29: 84.21525816 | M29: 85.3 | N29: 86.54056906
B30: Trent5,6 | E30: 74 | F30: 77.30870712 | G30: 78.47824104 | H30: 78.7 | I30: 78.94885561 | J30: 81.17039587 | K30: 83.89488426 | L30: 84.5770331 | M30: 85.9 | N30: 86.17898833
B31: West Midlands | C31: 76 | D31: 78.8 | E31: 80.3 | F31: 81.1 | G31: 85.5 | H31: 84.4 | I31: 83.5 | J31: 83.6 | K31: 84.35528232 | L31: 84.79447656 | M31: 87.9 | N31: 86.05728403
A32: Scotland | C32: 82.4 | D32: 81.8 | E32: 85.9 | F32: 85.55898227 | G32: 85.29961846 | H32: 84.8 | I32: 86.44238987 | J32: 86.238878 | K32: 85.76329331 | L32: 85.8427287 | M32: 86.8 | N32: 86.26468061
A33: Wales7 | D33: 43 | E33: 43 | F33: 58.61 | G33: 61.12 | H33: 64.83800708 | I33: 61.71854217 | J33: 66.41533546 | K33: 70.54743622 | L33: 77.8 | M33: 79.1 | N33: 80.7
A34: Northern Ireland8 | G34: 81.9 | H34: 80.94256259 | I34: 82.9 | J34: 85 | K34: 82.6 | L34: 85.1 | M34: 82.7 | N34: 87.2
A35: UK9 Average | C35: 77.95884347 | D35: 78.84883361 | E35: 77.25815518 | F35: 81.46868451 | G35: 79.28642412 | H35: 80.24978201 | I35: 80.51628355 | J35: 81.8543017 | K35: 82.62669014 | L35: 84.37272877 | M35: 84.98181818 | N35: =(SUM(N24:N34))/11 -> 85.92777473
A37: 1 | B37: Most, but not all, registries' analysis is of the diagnosis year two years prior to report publish year
A38: 2 | B38: Reports from 2007 reflect the boundary change between Eastern and Thames where Eastern includes Hertfordshire and Essex from 2007 onwards
A39: 3 | B39: For all reports, the figures for NWCIS were produced by multiplying the office area-specific estimates for the old MCCR (NWCIS: Liverpool) and NWCR (NWCIS: Manchester) registries by the proportions of ONS Ready cases reported for each area for each year
A40: 4 | B40: For 1998, 1999 and 2000 reports the separate estimates for Northern and Yorkshire registries have been averaged
A41: 5 | B41: In 1998 Trent submitted data for 1997 registrations, which was too soon after the calendar year was completed so the figures are not shown
A42: 6 | B42: Prior to the report published in 2000, Trent excluded DCOs from these calculations, artificially inflating the %MV reported - to avoid confusion, the figures for 1998 and 1999 have not been shown
A43: 7 | B43: Wales did not submit any data until the report published in 1999
A44: 8 | B44: Northern Ireland did not submit any data until the report published in 2002
A45: 9 | B45: GB average prior to 2002; England & Scotland average in 1998 report

Sheet Table 8
A1: TABLE 8: | C1: Trends in Mortality : Incidence ratios
A3: Mortality : Incidence ratio - males
A4: Registry | C4: Year report published 1
C5: 1998 | D5: 1999 | E5: 2000 | F5: 2001 | G5: 2002 | H5: 2003 | I5: 2004 | J5: 2005 | K5: 2006 | L5: 2007 | M5: 2008 | N5: 2009
A6: England (average)2 | G6: 0.59 | H6: 0.58 | I6: 0.5901572468 | J6: 0.5650457865 | K6: 0.5434444918 | L6: 0.5385278087 | M6: 0.53625 | N6: =(SUM(N7:N14))/8 -> 0.5284782557
B7: Eastern 3,4 | C7: 0.68 | D7: 0.638 | E7: 0.659 | F7: 0.635 | G7: 0.6 | H7: 0.64 | I7: 0.6 | J7: 0.5 | K7: 0.54 | L7: 0.54 | M7: 0.54 | N7: 0.53
B8: North West 5 | C8: 0.65781728 | D8: 0.6409627522 | E8: 0.6568121323 | F8: 0.6196188231 | G8: 0.6095111023 | H8: 0.5907147737 | I8: 0.6094039552 | J8: 0.566101738 | K8: 0.5328962135 | L8: 0.524194 | M8: 0.57 | N8: 0.58
B9: Northern & Yorkshire6 | C9: 0.71003591 | D9: 0.713 | E9: 0.681 | F9: 0.643 | G9: 0.627 | H9: 0.581 | I9: 0.6 | J9: 0.58 | K9: 0.57 | L9: 0.57 | M9: 0.56 | N9: 0.55
B10: Oxford | C10: 0.61 | D10: 0.58 | E10: 0.536 | F10: 0.552 | G10: 0.526 | H10: 0.536 | I10: 0.54 | J10: 0.53 | K10: 0.5 | L10: 0.51 | M10: 0.5 | N10: 0.47
B11: South & West | C11: 0.6002902391 | D11: 0.6 | E11: 0.6301886792 | F11: 0.58 | G11: 0.569 | H11: 0.53 | I11: 0.53 | J11: 0.53 | K11: 0.5 | L11: 0.51 | M11: 0.5 | N11: 0.4916
B12: Thames4 | C12: 0.6644236284 | D12: 0.6382305903 | E12: 0.631 | F12: 0.629 | G12: 0.6 | H12: n/a | I12: 0.6152273319 | J12: 0.6033841441 | K12: 0.5948325222 | L12: 0.561189578 | M12: 0.55 | N12: 0.5275830791
B13: Trent7 | D13: 0.69 | E13: 0.68 | F13: 0.6378066378 | G13: 0.6172851016 | H13: 0.611 | I13: 0.6304836895 | J13: 0.633082434 | K13: 0.5653368868 | L13: 0.5395252178 | M13: 0.53 | N13: 0.529178427
B14: West Midlands | C14: 0.6 | D14: 0.6 | E14: 0.615 | F14: 0.5629 | G14: 0.56 | H14: 0.59 | I14: 0.57 | J14: 0.569 | K14: 0.5448897173 | L14: 0.5533136738 | M14: 0.54 | N14: 0.5494645398
A15: Scotland | C15: 0.637 | D15: 0.597 | E15: 0.621 | F15: 0.614301102 | G15: 0.5896376351 | H15: 0.615 | I15: 0.643278743 | J15: 0.6109926558 | K15: 0.5992432603 | L15: 0.576952122 | M15: 0.6 | N15: 0.5817922117
A16: Wales8 | D16: 0.621 | E16: 0.598 | F16: 0.6003 | G16: 0.5403 | H16: 0.5579377233 | I16: 0.5569089718 | J16: 0.5258041287 | K16: 0.5003416856 | L16: 0.5 | M16: 0.48 | N16: 0.49
A17: Northern Ireland9 | G17: 0.61 | H17: 0.5729269092 | I17: 0.57 | J17: 0.58 | K17: 0.54 | L17: 0.56 | M17: 0.52 | N17: 0.52
A18: UK10 Average | C18: 0.6592889466 | D18: 0.6407858825 | E18: 0.6371573899 | F18: 0.6076295274 | G18: 0.5868310306 | H18: 0.5831849211 | I18: 0.590133578 | J18: 0.5668507385 | K18: 0.5442154477 | L18: 0.5404704174 | M18: 0.5354545455 | N18: =(SUM(N7:N17))/11 -> 0.5290562052
A20: Mortality : Incidence ratio - females
A21: Registry | C21: Year report published 1
C22: 1998 | D22: 1999 | E22: 2000 | F22: 2001 | G22: 2002 | H22: 2003 | I22: 2004 | J22: 2005 | K22: 2006 | L22: 2007 | M22: 2008 | N22: 2009
A23: England (average)2 | G23: 0.54 | H23: 0.54 | I23: 0.5506110211 | J23: 0.5118122946 | K23: 0.5081539713 | L23: 0.5057964766 | M23: 0.49625 | N23: =(SUM(N24:N31))/8 -> 0.4955277794
B24: Eastern 3,4 | C24: 0.59 | D24: 0.578 | E24: 0.577 | F24: 0.558 | G24: 0.55 | H24: 0.57 | I24: 0.52 | J24: 0.45 | K24: 0.49 | L24: 0.54 | M24: 0.5 | N24: 0.49
B25: North West 5 | C25: 0.61654816 | D25: 0.6025857755 | E25: 0.5930587006 | F25: 0.5874615753 | G25: 0.5589930029 | H25: 0.5596507008 | I25: 0.5692257483 | J25: 0.5221368514 | K25: 0.519949858 | L25: 0.5067884 | M25: 0.54 | N25: 0.55
B26: Northern & Yorkshire6 | C26: 0.6590360718 | D26: 0.647 | E26: 0.609 | F26: 0.579 | G26: 0.557 | H26: 0.549 | I26: 0.57 | J26: 0.53 | K26: 0.53 | L26: 0.53 | M26: 0.53 | N26: 0.53
B27: Oxford | C27: 0.53 | D27: 0.52 | E27: 0.547 | F27: 0.488 | G27: 0.506 | H27: 0.497 | I27: 0.5 | J27: 0.49 | K27: 0.46 | L27: 0.49 | M27: 0.46 | N27: 0.48
B28: South & West | C28: 0.5479761531 | D28: 0.54 | E28: 0.5261177371 | F28: 0.51 | G28: 0.488 | H28: 0.47 | I28: 0.51 | J28: 0.49 | K28: 0.48 | L28: 0.46 | M28: 0.46 | N28: 0.4525
B29: Thames4 | C29: 0.5990705844 | D29: 0.5788269053 | E29: 0.575 | F29: 0.5537930327 | G29: 0.58 | H29: n/a | I29: 0.5832047609 | J29: 0.555649449 | K29: 0.5506097344 | L29: 0.5207209521 | M29: 0.51 | N29: 0.4919430125
B30: Trent7 | D30: 0.62 | E30: 0.596 | F30: 0.5482472672 | G30: 0.5492199617 | H30: 0.574 | I30: 0.5870773288 | J30: 0.5242685026 | K30: 0.5007826015 | L30: 0.4947282387 | M30: 0.48 | N30: 0.4713618677
B31: West Midlands | C31: 0.57 | D31: 0.55 | E31: 0.537 | F31: 0.5244 | G31: 0.53 | H31: 0.55 | I31: 0.54 | J31: 0.52 | K31: 0.5105987055 | L31: 0.5041342217 | M31: 0.49 | N31: 0.4984173551
A32: Scotland | C32: 0.584 | D32: 0.555 | E32: 0.558 | F32: 0.5615265998 | G32: 0.5452233111 | H32: 0.553 | I32: 0.5748582084 | J32: 0.5472025336 | K32: 0.5564173316 | L32: 0.524975025 | M32: 0.54 | N32: 0.5344457176
A33: Wales8 | D33: 0.56 | E33: 0.569 | F33: 0.5694 | G33: 0.5237 | H33: 0.5562210727 | I33: 0.5339185954 | J33: 0.5113099042 | K33: 0.493931137 | L33: 0.5 | M33: 0.49 | N33: 0.49
A34: Northern Ireland9 | G34: 0.52 | H34: 0.5251840943 | I34: 0.5 | J34: 0.53 | K34: 0.49 | L34: 0.52 | M34: 0.5 | N34: 0.48
A35: UK10 Average | C35: 0.6026739815 | D35: 0.5846939088 | E35: 0.5741681448 | F35: 0.5512415857 | G35: 0.5414386612 | H35: 0.5423669061 | I35: 0.5470229995 | J35: 0.5162352574 | K35: 0.5094778508 | L35: 0.508304258 | M35: 0.5 | N35: =(SUM(N24:N34))/11 -> 0.4971516321
A37: 1 | B37: Most, but not all, registries' analysis is of the diagnosis year two years prior to report publish year
A38: 2 | B38: Thames did not receive any mortality data in 2001 and so were excluded from the england average for 2001 registrations in the 2003 report
A39: 3 | B39: Reports from 2007 reflect the boundary change between Eastern and Thames where Eastern includes Hertfordshire and Essex from 2007 onwards
A40: 4 | B40: Thames did not receive any mortality data in 2001 and so an average cannot be obtained for the new combined area of Eastern or figures presented for Thames
A41: 5 | B41: For all reports, the figures for NWCIS were produced by multiplying the office area-specific estimates for the old MCCR (NWCIS: Liverpool) and NWCR (NWCIS: Manchester) registries by the proportions of ONS Ready cases reported for each area for each year
A42: 6 | B42: For 1998, 1999 and 2000 reports the separate estimates for Northern and Yorkshire registries have been averaged
A43: 7 | B43: In 1998 Trent submitted data for 1997 registrations, which was too soon after the calendar year was completed so the figures are not shown
A44: 8 | B44: Wales did not submit any data until the report published in 1999
A45: 9 | B45: Northern Ireland did not submit any data until the report published in 2002
A46: 10 | B46: GB average prior to 2002; England & Scotland average in 1998 report

Sheet Table 9a
A1: TABLE 9A: | C1: Trends in completeness of the dataset - demographics and diagnostic details
A3: Completeness of the dataset (UK Average1)
A4: This table shows the % of cases with a Valid Known code on the database
B6: Dataset variable | C6: Year report published 2
C7: 1998 | D7: 1999 | E7: 2000 | F7: 2001 | G7: 2002 | H7: 2003 | I7: 2004 | J7: 2005 | K7: 2006 | L7: 2007 | M7: 2008 | N7: 2009
B8: Patient's name | C8: 99.998 | D8: 99.98833333 | E8: 99.99833333 | F8: 99.99884851 | G8: 99.94545455 | H8: 99.93506285 | I8: 99.98232932 | J8: 100 | K8: 99.99825492 | L8: 99.99833237 | M8: 99.99692886 | N8: 100
B9: Patient's address | C9: 99.37777778 | D9: 99.77363636 | E9: 99.96262754 | F9: 99.71201689 | G9: 99.6307066 | H9: 96.33162142 | I9: 99.70182076 | J9: 99.78303477 | K9: 99.84702567 | L9: 99.80830616 | M9: 99.91510126 | N9: 99.88987793
B10: Post code | C10: 99.54250838 | D10: 99.15044547 | E10: 99.69166667 | F10: 99.38571563 | G10: 99.48082182 | H10: 99.5 | I10: 99.56618341 | J10: 98.86538141 | K10: 99.79162334 | L10: 99.66034217 | M10: 99.79071656 | N10: 99.87605036
B11: Sex | C11: 99.98869996 | D11: 99.99166667 | E11: 100 | F11: 99.9995152 | G11: 99.99869124 | H11: 99.99725787 | I11: 100 | J11: 99.99166667 | K11: 99.99808436 | L11: 99.99784829 | M11: 99.98181818 | N11: 99.99454545
B12: Date of birth | C12: 99.60858881 | D12: 99.9731394 | E12: 99.95153533 | F12: 99.97381904 | G12: 99.99090909 | H12: 99.99324333 | I12: 100 | J12: 100 | K12: 99.99166667 | L12: 100 | M12: 100 | N12: 100
B13: Unique Health Identifier 3 | C13: 30.6244446 | D13: 42.01084214 | E13: 56.04579041 | F13: 71.1550296 | G13: 76.11305797 | H13: 70.32488076 | I13: 88.6990624 | J13: 92.47821215 | K13: 94.18770686 | L13: 95.42138793 | M13: 96.75191216 | N13: 99.01412755
B14: NHS number (England Only) | G14: 79.70562641 | H14: 82.6485967 | I14: 95.93806268 | J14: 98.6118494 | K14: 98.4149709 | L14: 99.12784688 | M14: 98.9875 | N14: 99.55203834
B15: Ethnicity | K15: 27.54299753 | L15: 38.43948913 | M15: 50.22102618 | N15: 50.02899368
B16: Anniversary (diagnosis) date | C16: 99.3677117 | D16: 99.39632679 | E16: 99.41291477 | F16: 99.78181818 | G16: 99.73636364 | H16: 99.75833333 | I16: 99.81666667 | J16: 99.825 | K16: 99.775 | L16: 99.71362413 | M16: 99.71329702 | N16: 99.64443126
B17: Site of primary growth | C17: 97.38815733 | D17: 93.88629054 | E17: 94.37300411 | F17: 94.48917807 | G17: 94.69870426 | H17: 94.43153248 | I17: 95.0933699 | J17: 95.00365301 | K17: 95.60422727 | L17: 96.13154542 | M17: 96.19910881 | N17: 96.38714921
B18: Date of death (where dead) | C18: 99.97160494 | D18: 99.93544348 | E18: 99.94554474 | F18: 99.8613748 | G18: 99.97454545 | H18: 99.96206872 | I18: 99.96961296 | J18: 99.98118951 | K18: 99.98807032 | L18: 99.97097452 | M18: 99.99204645 | N18: 100
B19: Type of growth | C19: 85.13894391 | D19: 79.6786239 | E19: 82.14847611 | F19: 82.08411562 | G19: 82.95493503 | H19: 83.95425861 | I19: 84.56409417 | J19: 86.75582174 | K19: 87.73691353 | L19: 88.55581039 | M19: 87.42388612 | N19: 88.42212598
B20: Behaviour of growth | C20: 94.95612902 | D20: 99.06270318 | E20: 98.49754251 | F20: 99.66101637 | G20: 99.61833447 | H20: 97.7667515 | I20: 98.38880738 | J20: 99.04410061 | K20: 99.66379308 | L20: 99.93234799 | M20: 99.93074883 | N20: 99.83318127
B21: Basis of diagnosis | C21: 91.60776675 | D21: 94.00580347 | E21: 94.48376585 | F21: 94.94439299 | G21: 93.13211263 | H21: 94.05470984 | I21: 94.35458268 | J21: 95.84807606 | K21: 96.49013615 | L21: 97.46631275 | M21: 97.74310981 | N21: 98.61118168
A23: 1 | B23: UK average for 2003; GB average prior to 2003; England & Scotland average in 1998 report
A24: 2 | B24: For most, but not all registries, the analysis is of the diagnosis year two years prior to report publish year
A25: 3 | B25: NHS Number for England and Wales; CHI for Scotland and Health and Social Care Number for Northern Ireland

Sheet Table 9b
A1: TABLE 9B: | C1: Trends in completeness of the dataset - treatment and prognostic tumour details
A3: Completeness of the dataset (UK Average1)
A4: This table shows the % of cases with a Valid Known code on the database
B6: Dataset variable | C6: Year report published 2
C7: 1998 | D7: 1999 | E7: 2000 | F7: 2001 | G7: 2002 | H7: 2003 | I7: 2004 | J7: 2005 | K7: 2006 | L7: 2007 | M7: 2008 | N7: 2009
B8: Treatment codes (% yes) 3
B9: All xnmsc - Therapeutic surgery | D9: 50.9274429 | E9: 48.2549809 | F9: 42.40223432 | G9: 46.07264324 | H9: 49.34952302 | I9: 45.21076804 | J9: 44.95838625 | K9: 43.20826032 | L9: 43.97178036 | M9: 45.60909091 | N9: 45.72319468
B10: All xnmsc - Radiotherapy 4 | D10: 22.41650817 | E10: 22.66756412 | F10: 22.04115373 | G10: 18.91249927 | H10: 14.89183472 | I10: 16.79553729 | J10: 18.29883707 | K10: 18.13192647 | L10: 17.94013642 | M10: 17.76 | N10: 16.39464238
B11: All xnmsc - Chemotherapy | D11: 11.41190984 | E11: 15.50911928 | F11: 15.877274 | G11: 16.61497011 | H11: 14.78670151 | I11: 15.8297061 | J11: 16.89726664 | K11: 18.83088094 | L11: 19.35856254 | M11: 19.50909091 | N11: 21.12077164
B13: Grade - Breast cancer only 5 | C13: 49.12443016 | D13: 62.47250848 | E13: 65.49005027 | F13: 72.3938216 | G13: 73.05313531 | H13: 73.94159762 | I13: 76.43235668 | J13: 78.85456919 | K13: 78.45296812 | L13: 76.39333097 | M13: 83.01308218 | N13: 86.25310998
A15: 1 | B15: UK average for 2003; GB average prior to 2003; England & Scotland average in 1998 report
A16: 2 | B16: For most, but not all registries, the analysis is of the diagnosis year two years prior to report publish year
A17: 3 | B17: The definition of treatment was changed between the 1998 and 1999 report so the data for 1998 report is not shown. Hormone treatment has not been shown as the definition was changed again in the 2007 report
A18: 4 | B18: Wales do not receive radiotherapy data and so the UK average excludes Wales for radiotherapy
A19: 5 | B19: Only grade for breast cancer has been shown, and the staging information been removed from the table since the definitions for which staging data should be collected/presented have changed in the 2007 report
